bitfinex/quotes_ETHUSD_20250403
["timestamp","ask_amount","ask_price","bid_price","bid_amount"]
[1743681729241,0.0292,1794.4,1794.2,0.05572958]
[1743681729642,5.57229,1794.6,1794.2,5.62918958]
[1743681729643,5.60149,1794.6,1794.2,5.62918958]
[1743681729842,5.60149,1794.6,1794.2,13.38325472]
[1743681730070,11.17393,1794.6,1794.2,7.75406514]
[1743681730371,5.57266,1794.5,1794.2,1.42180514]
[1743681730572,0.0292,1794.6,1793.9,9.55789179]
[1743681730759,5.60256,1794.3,1794.0,0.05573515]
[1743681730982,5.60256,1794.3,1793.9,8.78718179]
[1743681731290,0.0292,1794.3,1793.9,3.21286179]
[1743681731572,5.57259,1794.5,1794.1,14.36030179]
[1743681731773,5.57259,1794.5,1794.1,8.78648179]
[1743681731944,5.57299,1794.4,1794.1,3.21286179]
[1743681732145,5.57299,1794.4,1794.0,12.23994618]
[1743681732345,5.57299,1794.4,1794.1,5.57376]
[1743681732549,11.1453,1794.5,1794.2,0.557376]
[1743681732844,5.57292,1794.4,1794.1,5.57377]
[1743681733079,5.57259,1794.5,1794.1,11.20321173]
[1743681733369,11.14532,1794.5,1794.1,5.57371]
[1743681733741,5.57259,1794.5,1794.1,11.1474]
[1743681733938,5.60087,1794.8,1794.3,3.21286179]
[1743681734263,0.0292,1794.8,1794.5,5.57254]
[1743681734477,5.57138,1794.9,1794.5,11.20074042]
[1743681734695,6.1992,1795.0,1794.7,5.57195]
[1743681734976,5.57078,1795.1,1794.7,5.57195]
[1743681735374,5.59965,1795.2,1794.5,9.57589179]
[1743681735574,10.9469,1795.4,1794.8,0.8284]
[1743681735782,0.0292,1795.4,1795.1,5.57053]
[1743681736144,11.14051,1795.3,1794.9,8.78412179]
[1743681736498,5.5702,1795.3,1794.9,8.83982682]
[1743681736674,5.59904,1795.4,1794.9,4.7925255]
[1743681736877,5.59904,1795.4,1795.0,5.57087]
[1743681737047,5.59904,1795.4,1795.0,11.14176]
[1743681737247,0.0292,1795.4,1794.9,8.78415179]
[1743681737443,5.57104,1795.0,1794.7,5.57192]
[1743681737648,5.57135,1794.9,1794.6,0.95758918]
[1743681737896,5.57135,1794.9,1794.6,1.01329832]
[1743681738398,5.57138,1794.9,1794.5,5.62817535]
[1743681738747,5.57138,1794.9,1794.5,5.57246]
[1743681738966,5.5717,1794.8,1794.5,5.57246]
[1743681739168,5.60124,1794.7,1794.3,9.18928797]
[1743681739386,0.0292,1794.7,1794.4,6.4918188]
[1743681739593,5.57228,1794.6,1794.4,0.9189288]
[1743681739897,0.0292,1794.7,1794.0,9.57703179]
[1743681740085,0.0292,1794.7,1793.9,11.14852]
[1743681740086,5.57322,1794.3,1793.9,11.14852]
[1743681740607,5.57314,1794.4,1794.1,5.57382]
[1743681741099,5.57361,1794.2,1793.8,9.54496179]
[1743681741400,11.14668,1794.3,1793.9,6.58467331]
[1743681741595,5.57355,1794.2,1793.9,6.58467331]
[1743681741803,5.57355,1794.2,1793.9,6.52893618]
[1743681741997,5.57355,1794.2,1793.9,6.58467259]
[1743681742167,5.57289,1794.4,1793.9,1.01023259]
[1743681742378,11.14597,1794.4,1794.0,5.57398]
[1743681742579,5.57289,1794.4,1794.0,5.57398]
[1743681743212,11.14599,1794.4,1794.0,5.57398]
[1743681744220,5.57289,1794.4,1794.0,11.14795]
[1743681744364,0.0292,1794.5,1794.0,3.21286179]
[1743681744563,5.57232,1794.6,1794.3,5.57318]
[1743681744803,5.60118,1794.7,1794.3,5.62890617]
[1743681745097,0.0292,1794.7,1794.4,11.14563]
[1743681745321,5.57169,1794.8,1794.4,11.14563]
[1743681746679,5.57169,1794.8,1794.4,5.57277]
[1743681746878,5.57202,1794.7,1794.4,6.687361]
[1743681748803,5.4072,1794.9,1794.2,9.59246179]
[1743681749096,5.60191,1794.5,1794.1,11.27209618]
[1743681749273,5.60191,1794.5,1794.1,5.57381]
[1743681749472,5.57301,1794.4,1794.1,5.57381]
[1743681749683,11.14613,1794.4,1794.0,6.35313]
[1743681749884,5.5732,1794.3,1794.0,8.156886]
[1743681750273,5.57291,1794.4,1794.0,7.377786]
[1743681750485,11.14598,1794.4,1794.1,5.57374]
[1743681750677,11.14598,1794.4,1794.0,12.951766]
[1743681750878,11.14598,1794.4,1794.0,12.951756]
[1743681750879,5.57291,1794.4,1794.0,12.951756]
[1743681751090,5.57291,1794.4,1794.1,1.2951756]
[1743681751302,11.14597,1794.4,1794.1,1.2951756]
[1743681752082,5.57321,1794.3,1794.1,1.2951756]
[1743681752283,5.57289,1794.4,1793.8,15.16689179]
[1743681752484,5.57385,1794.1,1793.8,6.37935]
[1743681752688,11.17677,1794.2,1793.8,12.00975046]
[1743681752895,5.60298,1794.2,1793.8,11.95401]
[1743681753406,11.17667,1794.2,1793.8,11.95401]
[1743681753607,5.57386,1794.1,1793.7,48.08116862]
[1743681753827,5.57459,1793.9,1793.7,2.40712862]
[1743681754127,5.57459,1793.9,1793.6,0.7946]
[1743681754128,5.57459,1793.9,1793.6,5.57528]
[1743681754306,5.57475,1793.8,1793.5,5.57557]
[1743681755232,5.60366,1793.9,1793.2,9.57581179]
[1743681755406,5.57601,1793.4,1793.1,5.62678]
[1743681755709,11.1522,1793.4,1793.2,0.562678]
[1743681755872,5.57601,1793.4,1793.1,0.05]
[1743681757109,0.0292,1793.5,1793.1,0.05]
[1743681757322,10.95308,1793.7,1793.3,5.576]
[1743681757523,10.95308,1793.7,1793.4,5.57587]
[1743681757702,10.95308,1793.7,1793.1,5.62691]
[1743681757703,5.57583,1793.5,1793.1,5.62688]
[1743681757889,5.57601,1793.4,1793.1,10.279408]
[1743681758094,5.57583,1793.5,1793.1,10.279318]
[1743681758318,0.0292,1793.4,1793.1,10.279318]
[1743681758623,0.0292,1793.4,1793.1,0.05]
[1743681758814,5.57662,1793.2,1793.1,0.05]
[1743681759123,5.6054,1793.4,1793.1,0.05]
[1743681759790,5.6054,1793.4,1793.1,5.62688]
[1743681759986,0.0292,1793.4,1793.1,5.62682]
[1743681760202,5.6052,1793.4,1793.1,6.189502]
[1743681760398,5.60464,1793.6,1793.2,5.57656]
[1743681761092,5.60409,1793.8,1793.5,5.57559]
[1743681762135,5.5746,1793.9,1793.5,6.35229]
[1743681762344,5.5746,1793.9,1793.5,6.35224]
[1743681762510,10.98337,1794.0,1793.6,5.57515]
[1743681762709,10.98337,1794.0,1793.7,5.57506]
[1743681762710,5.38,1794.0,1793.7,5.57506]
[1743681762924,5.57389,1794.1,1793.8,5.57474]
[1743681763298,5.60277,1794.2,1793.9,5.57431]
[1743681763503,5.57327,1794.3,1793.9,11.92532]
[1743681763700,11.14666,1794.3,1793.9,6.35101]
[1743681764125,11.14664,1794.3,1793.9,6.35101]
[1743681764322,5.57327,1794.3,1793.9,6.35099]
[1743681764524,5.60412,1793.8,1793.4,5.57589]
[1743681764723,0.0292,1793.8,1793.5,5.57541]
[1743681764907,11.17784,1794.0,1793.6,5.5752]
[1743681765102,0.0292,1794.0,1793.5,5.57568]
[1743681765307,5.57476,1793.8,1793.4,5.57592]
[1743681765507,5.57476,1793.8,1793.5,0.557592]
[1743681765698,11.14972,1793.8,1793.4,5.57587]
[1743681765898,5.57507,1793.7,1793.4,5.57587]
[1743681766225,11.15031,1793.7,1793.3,6.38838]
[1743681766428,5.576,1793.4,1793.2,40.127]
[1743681766609,5.57662,1793.2,1793.1,0.05]
[1743681768132,5.5761,1793.4,1793.1,0.05]
[1743681768429,11.18081,1793.5,1793.1,6.189548]
[1743681768627,5.60488,1793.5,1793.1,11.766358]
[1743681768798,5.60491,1793.5,1793.2,5.57649]
[1743681768999,11.18078,1793.5,1793.1,6.189528]
[1743681769199,5.57604,1793.4,1793.1,6.189528]
[1743681770033,11.15225,1793.4,1793.1,0.05]
[1743681770202,5.57604,1793.4,1793.1,5.62689]
[1743681771437,5.60491,1793.5,1793.1,11.20372]
[1743681773002,5.60362,1794.0,1793.3,3.66621126]
[1743681773231,11.17793,1794.0,1793.6,5.57528]
[1743681773424,5.60356,1794.0,1793.6,11.9712]
[1743681773596,5.60352,1794.0,1793.6,6.39592]
[1743681773803,5.57454,1793.9,1793.6,5.57522]
[1743681774106,5.60352,1794.0,1793.5,5.57565]
[1743681774107,0.0292,1794.0,1793.5,5.57568]
[1743681774319,0.0292,1794.0,1793.7,5.57489]
[1743681774503,0.0292,1794.0,1793.7,11.14981]
[1743681774703,0.0292,1794.0,1793.8,5.57472]
[1743681775128,0.0292,1794.0,1793.7,11.14983]
[1743681775298,0.0292,1794.0,1793.7,12.264813]
[1743681775506,0.0292,1794.0,1793.5,5.57556]
[1743681775711,11.14923,1793.9,1793.5,5.57556]
[1743681776128,5.57482,1793.8,1793.5,5.57556]
[1743681776535,5.57539,1793.6,1793.3,5.57602]
[1743681776904,5.60453,1793.7,1793.3,11.15218]
[1743681777233,5.60453,1793.7,1793.4,1.115218]
[1743681778038,16.6043,1793.9,1793.4,1.17097603]
[1743681778217,16.6043,1793.9,1793.5,5.57558]
[1743681779110,5.57478,1793.8,1793.5,5.57558]
[1743681779532,11.14973,1793.8,1793.4,5.57593]
[1743681780050,5.57539,1793.6,1793.3,5.57629]
[1743681780364,0.0292,1793.8,1793.1,5.62668]
[1743681780663,11.1519,1793.5,1793.1,5.62668]
[1743681780861,5.57662,1793.2,1793.1,0.05]
[1743681781028,5.60582,1793.2,1793.1,0.05]
[1743681783522,12.32582,1793.2,1793.1,0.05]
[1743681783956,15.32582,1793.2,1793.1,0.05]
[1743681785653,14.77582,1793.2,1793.1,0.05]
[1743681790055,11.77582,1793.2,1793.1,0.05]
[1743681790246,11.74662,1793.2,1793.1,0.05]
[1743681790442,6.17,1793.2,1793.1,0.05]
[1743681790849,11.74662,1793.2,1793.1,0.05]
[1743681791235,5.57578,1793.5,1793.2,5.57651]
[1743681792230,11.15163,1793.5,1793.2,5.57651]
[1743681792431,5.57541,1793.6,1793.1,0.05]
[1743681792631,5.57541,1793.6,1793.2,5.57633]
[1743681792867,5.57541,1793.6,1793.3,5.57627]
[1743681793250,6.1992,1793.7,1793.1,5.62685]
[1743681793459,5.57586,1793.5,1793.2,5.57653]
[1743681793766,11.15034,1793.7,1793.4,5.57591]
[1743681793930,11.15034,1793.7,1793.3,6.39028]
[1743681794646,5.57542,1793.6,1793.3,0.8141]
[1743681794953,5.57542,1793.6,1793.3,11.96641]
[1743681795163,5.57542,1793.6,1793.4,1.196641]
[1743681795334,5.57573,1793.5,1793.3,0.8141]
[1743681796343,5.57641,1793.3,1793.1,0.8208]
[1743681796543,5.57596,1793.5,1793.1,6.39759]
[1743681796741,11.15192,1793.5,1793.1,11.97439]
[1743681796929,5.57586,1793.5,1793.1,11.97439]
[1743681797445,5.57585,1793.5,1793.1,7.595029]
[1743681797646,5.57585,1793.5,1793.1,13.171849]
[1743681798338,5.57543,1793.6,1793.2,5.57651]
[1743681798538,5.57512,1793.7,1793.4,5.57596]
[1743681798749,5.57512,1793.7,1793.4,6.38216]
[1743681798969,11.15035,1793.7,1793.4,6.38216]
[1743681799166,5.57512,1793.7,1793.4,6.38216]
[1743681799370,5.57482,1793.8,1793.5,5.57568]
[1743681799570,5.57528,1793.7,1793.4,6.38205]
[1743681799771,5.57528,1793.7,1793.4,0.8062]
[1743681800069,11.15063,1793.7,1793.4,0.8062]
[1743681800276,5.57545,1793.6,1793.4,0.8062]
[1743681801184,11.15101,1793.6,1793.4,0.8062]
[1743681801470,5.57568,1793.5,1793.2,11.93127]
[1743681801770,5.57568,1793.5,1793.2,2.0960709]
[1743681801974,5.57568,1793.5,1793.2,0.7782]
[1743681802139,5.57617,1793.4,1793.2,0.7782]
[1743681802663,5.57631,1793.3,1793.1,0.05]
[1743681802862,11.15223,1793.4,1793.1,0.05]
[1743681803063,5.57636,1793.3,1793.1,0.05]
[1743681804876,5.57662,1793.2,1793.1,0.05]
[1743681806874,5.57607,1793.4,1793.1,5.62692]
[1743681807850,0.60511103,1793.4,1793.1,0.05]
[1743681808049,5.57643,1793.3,1793.1,0.05]
[1743681808280,5.57601,1793.4,1793.1,5.62681]
[1743681808785,10.99474,1793.5,1793.1,5.62681]
[1743681808786,5.57647,1793.3,1793.1,0.05]
[1743681808978,5.60582,1793.2,1793.1,0.05]
[1743681809461,5.57662,1793.2,1793.1,0.05]
[1743681809961,5.60582,1793.2,1793.1,0.05]
[1743681810282,8.57662,1793.2,1793.1,0.05]
[1743681810646,5.57662,1793.2,1793.1,0.05]
[1743681811262,8.60582,1793.2,1793.1,0.05]
[1743681811461,9.15582,1793.2,1793.1,0.05]
[1743681811981,18.99203126,1793.2,1793.1,1e-05]
[1743681812778,19.39985768,1793.2,1793.1,1e-05]
[1743681812972,25.55565723,1793.2,1793.1,1e-05]
[1743681813251,5.57942,1792.3,1792.2,0.55]
[1743681813470,5.57973,1792.2,1792.1,0.05]
[1743681813677,5.57973,1792.2,1791.3,0.8081]
[1743681813678,0.0292,1791.8,1791.3,0.8081]
[1743681813885,5.58378,1790.9,1790.8,0.55]
[1743681814252,5.58356,1791.0,1790.8,0.55]
[1743681814585,5.58378,1790.9,1790.8,0.55]
[1743681814791,5.58356,1791.0,1790.8,0.55]
[1743681814993,0.0292,1791.1,1790.8,0.55]
[1743681815291,3.66621126,1790.9,1790.8,0.55]
[1743681815463,3.69541126,1791.4,1790.8,0.55]
[1743681815649,5.58338,1791.1,1790.8,0.55]
[1743681816184,14.83305126,1791.1,1790.8,0.55]
[1743681816385,5.58357,1791.0,1790.8,0.55]
[1743681816959,14.83185126,1791.3,1790.8,0.55]
[1743681817361,9.24902126,1791.3,1790.8,6.13404]
[1743681817791,5.58281,1791.3,1790.8,6.93934]
[1743681817991,11.15225,1791.4,1790.9,5.58374]
[1743681818193,11.18249,1791.7,1791.1,5.58302]
[1743681818490,11.15329,1791.7,1791.2,11.16544]
[1743681818689,5.572,1791.7,1791.3,5.58234]
[1743681818890,5.572,1791.7,1791.3,6.39594]
[1743681819514,5.572,1791.7,1791.3,6.39587]
[1743681819666,5.572,1791.7,1791.4,5.58202]
[1743681819986,15.41625126,1792.1,1791.5,5.58166]
[1743681820172,5.57928,1792.4,1791.8,5.58072]
[1743681820173,5.57935,1792.4,1791.8,5.58072]
[1743681820364,5.57935,1792.4,1791.8,6.35552]
[1743681820565,5.57955,1792.3,1791.8,11.93641]
[1743681820892,5.57955,1792.3,1791.9,5.58066]
[1743681821795,5.57934,1792.4,1792.0,5.58033]
[1743681821983,11.15868,1792.4,1792.0,5.58033]
[1743681822189,5.57934,1792.4,1792.0,5.58033]
[1743681822383,5.57874,1792.6,1792.1,5.5799]
[1743681822892,11.15754,1792.6,1792.1,5.5799]
[1743681823299,5.57881,1792.5,1792.1,5.5799]
[1743681823677,11.15788,1792.5,1792.0,5.58017]
[1743681823985,3.66621126,1792.7,1792.4,5.57908]
[1743681824164,5.57813,1792.8,1792.4,6.40278]
[1743681824371,5.57811,1792.8,1792.4,0.8237]
[1743681824979,5.5788,1792.5,1792.1,5.57985]
[1743681825185,5.57967,1792.3,1792.0,0.8054]
[1743681825472,5.57975,1792.2,1792.0,0.8054]
[1743681826194,5.58004,1792.1,1791.8,40.164]
[1743681826571,5.57943,1792.3,1791.7,0.7833]
[1743681826788,5.58084,1791.9,1791.7,0.7833]
[1743681827391,5.58038,1792.0,1791.7,0.7833]
[1743681827586,5.5807,1791.9,1791.7,0.7833]
[1743681827787,11.753,1792.5,1791.8,5.58084]
[1743681828101,5.57966,1792.3,1791.9,5.58048]
[1743681828628,5.57914,1792.4,1791.9,5.58048]
[1743681828629,5.57914,1792.4,1791.9,5.58047]
[1743681828804,17.33183,1792.5,1792.1,5.57988]
[1743681829181,5.57912,1792.4,1792.0,5.58032]
[1743681829374,17.33185,1792.5,1792.1,5.57986]
[1743681829895,11.16185,1792.5,1792.1,5.57986]
[1743681830104,11.16317,1792.7,1792.3,5.57921]
[1743681831489,5.57789,1792.8,1792.4,5.57894]
[1743681831873,5.57817,1792.7,1792.1,5.57997]
[1743681832074,5.57926,1792.4,1792.0,11.95767]
[1743681832323,11.1586,1792.4,1792.0,6.37733]
[1743681832515,11.15919,1792.3,1792.0,0.7971]
[1743681832826,5.58066,1792.0,1791.7,0.7863]
[1743681833028,11.16159,1791.9,1791.7,0.7863]
[1743681833230,5.58079,1791.9,1791.7,0.7863]
[1743681833525,5.58098,1791.8,1791.4,12.362049]
[1743681833699,5.5804,1792.0,1791.5,6.3682]
[1743681833900,11.16096,1792.0,1791.6,5.5815]
[1743681834314,5.58084,1791.9,1791.5,6.3682]
[1743681834690,5.602,1792.1,1791.5,6.36805]
[1743681834886,5.5813,1791.7,1791.5,0.7863]
[1743681835290,3.96243644,1791.7,1790.9,0.7905]
[1743681835590,5.58264,1791.3,1790.8,6.13396]
[1743681835816,5.58266,1791.3,1790.9,5.58358]
[1743681835990,5.58266,1791.3,1790.9,11.16717]
[1743681836191,5.58223,1791.4,1790.8,0.55]
[1743681836192,5.58344,1791.1,1790.8,0.55]
[1743681836414,5.5835,1791.0,1790.8,0.55]
[1743681837319,5.58409,1790.8,1790.2,0.55]
[1743681837619,5.694,1790.7,1790.2,0.55]
[1743681837789,5.58456,1790.7,1790.2,0.55]
[1743681837986,5.58456,1790.7,1790.3,5.58547]
[1743681838185,5.58479,1790.6,1790.2,6.13594]
[1743681838419,5.58456,1790.7,1790.2,7.50602296]
[1743681838613,5.58456,1790.7,1790.3,5.58553]
[1743681838920,5.58456,1790.7,1790.2,7.45015]
[1743681839099,5.58416,1790.8,1790.3,5.58539]
[1743681839291,5.58416,1790.8,1790.4,5.58517]
[1743681839494,5.58416,1790.8,1790.4,5.5853]
[1743681839723,11.16854,1790.8,1790.3,5.58539]
[1743681839883,5.58416,1790.8,1790.4,5.58525]
[1743681840089,11.29449,1791.0,1790.6,5.5846]
[1743681840337,5.711,1791.0,1790.6,11.16916]
[1743681840498,5.58318,1791.1,1790.7,5.58431]
[1743681840831,5.58437,1790.8,1790.4,0.79]
[1743681840989,5.58459,1790.7,1790.4,0.79]
[1743681841187,11.16906,1790.7,1790.4,0.79]
[1743681841426,5.58472,1790.6,1790.4,0.79]
[1743681842222,5.58416,1790.8,1790.4,0.79]
[1743681842430,12.17421308,1791.6,1790.8,5.58392]
[1743681842745,12.17421308,1791.6,1790.9,6.35577]
[1743681842746,5.58229,1791.4,1790.9,6.35577]
[1743681842946,5.58163,1791.6,1791.0,0.05583236]
[1743681843225,5.58256,1791.3,1790.9,9.35575]
[1743681843727,5.5831,1791.2,1790.9,0.7721]
[1743681843898,5.725,1791.6,1790.9,0.7721]
[1743681844099,5.58234,1791.4,1791.0,5.58336]
[1743681844422,5.58186,1791.6,1790.9,0.7721]
[1743681844724,5.58186,1791.6,1791.2,5.58269]
[1743681844924,5.58247,1791.4,1790.9,12.08587]
[1743681845131,5.58255,1791.3,1790.9,11.93949]
[1743681845422,11.30435,1791.7,1790.9,11.93949]
[1743681845423,0.55,1791.5,1790.9,0.7721]
[1743681845623,5.58329,1791.1,1790.9,0.7721]
[1743681845825,5.58288,1791.2,1790.9,0.7721]
[1743681846029,5.58434,1790.8,1790.6,0.825]
[1743681846190,5.58378,1790.9,1790.6,0.825]
[1743681846731,5.58317,1791.1,1790.7,5.58429]
[1743681847024,3.0,1791.2,1790.6,0.825]
[1743681847234,5.58421,1790.8,1790.6,0.825]
[1743681848532,5.58381,1790.9,1790.6,0.825]
[1743681848696,5.58319,1791.1,1790.6,0.825]
[1743681848896,5.58291,1791.2,1790.8,5.5839]
[1743681849119,11.3298,1791.3,1790.9,5.58363]
[1743681849321,5.58229,1791.4,1790.7,3.0]
[1743681849530,5.58328,1791.1,1790.7,8.58421]
[1743681849903,5.58328,1791.1,1790.8,5.58407]
[1743681850106,11.16658,1791.1,1790.7,5.58421]
[1743681850313,5.58382,1790.9,1790.6,0.825]
[1743681850537,5.58382,1790.9,1790.4,0.786]
[1743681850829,11.1678,1790.9,1790.5,5.58481]
[1743681851236,5.58412,1790.8,1790.4,6.37134]
[1743681851406,5.58384,1790.9,1790.5,5.58479]
[1743681851606,5.58411,1790.8,1790.5,5.58479]
[1743681852024,11.16841,1790.8,1790.4,9.37123]
[1743681852414,11.16839,1790.8,1790.4,9.37123]
[1743681852739,11.16839,1790.8,1790.2,0.55]
[1743681852740,5.5853,1790.5,1790.2,0.55]
[1743681852935,5.58537,1790.4,1790.2,0.55]
[1743681853324,11.1706,1790.5,1790.2,0.55]
[1743681853840,5.5853,1790.5,1790.2,6.13594]
[1743681854005,11.17051,1790.5,1790.2,0.55]
[1743681854206,5.58475,1790.6,1790.2,6.13592]
[1743681854536,5.58415,1790.8,1790.4,5.5852]
[1743681854934,5.7752,1790.9,1790.3,5.58561]
[1743681854935,11.16904,1790.7,1790.3,5.58561]
[1743681855135,11.35899,1790.9,1790.2,6.13591]
[1743681855340,5.58518,1790.5,1790.2,0.55]
[1743681855750,5.58537,1790.4,1790.2,0.55]
[1743681855955,11.17088,1790.4,1790.2,0.55]
[1743681856119,5.58537,1790.4,1790.2,0.55]
[1743681856523,5.5838,1790.9,1790.5,5.58472]
[1743681856716,5.5838,1790.9,1790.6,5.58468]
[1743681857042,11.16714,1791.0,1790.6,5.58468]
[1743681857242,5.58348,1791.0,1790.6,5.58457]
[1743681857445,5.58321,1791.1,1790.7,11.16853]
[1743681857646,0.0292,1791.5,1790.6,5.58472]
[1743681857823,5.58206,1791.5,1791.1,5.58297]
[1743681858024,5.58133,1791.7,1791.3,5.58232]
[1743681858343,5.58214,1791.5,1791.1,5.5831]
[1743681858554,5.58129,1791.7,1791.2,5.58259]
[1743681858755,5.58161,1791.6,1791.3,5.58242]
[1743681859125,5.58161,1791.6,1791.2,5.58259]
[1743681859325,5.58201,1791.5,1791.1,5.58313]
[1743681859830,5.58156,1791.7,1791.3,5.58235]
[1743681860029,5.58099,1791.8,1791.4,5.58201]
[1743681860230,5.58099,1791.8,1791.4,11.16408]
[1743681860632,5.58067,1791.9,1791.5,11.16368]
[1743681860855,5.58067,1791.9,1791.5,5.58177]
[1743681861044,5.58135,1791.7,1791.4,5.58219]
[1743681861364,5.5809,1791.9,1791.4,5.58219]
[1743681861365,5.58107,1791.8,1791.4,5.58219]
[1743681861561,5.58107,1791.8,1791.4,11.16422]
[1743681861769,5.58107,1791.8,1791.4,11.16413]
[1743681862062,5.5809,1791.9,1791.5,5.58187]
[1743681862442,5.58113,1791.8,1791.4,5.5822]
[1743681862643,5.58113,1791.8,1791.4,5.58203]
[1743681863044,5.58113,1791.8,1791.5,5.58188]
[1743681863434,5.58113,1791.8,1791.4,11.16412]
[1743681863638,5.58133,1791.7,1791.3,6.37553]
[1743681863833,5.58133,1791.7,1791.3,11.95794]
[1743681864147,11.16232,1791.8,1791.4,5.58207]
[1743681864645,5.58135,1791.7,1791.4,5.58207]
[1743681864842,5.58273,1791.3,1791.1,6.11]
[1743681865073,5.58273,1791.3,1791.0,0.8007]
[1743681865852,5.58227,1791.4,1791.0,6.384]
[1743681866074,5.58197,1791.5,1791.1,5.58299]
[1743681866267,5.58197,1791.5,1791.1,11.166]
[1743681866468,11.33566,1791.6,1791.3,5.58253]
[1743681866772,5.754,1791.6,1791.3,5.58238]
[1743681867067,11.16281,1791.7,1791.3,5.58238]
[1743681867276,5.58138,1791.7,1791.3,5.58247]
[1743681867450,11.16287,1791.7,1791.3,5.58247]
[1743681868250,11.16355,1791.6,1791.2,5.5827]
[1743681868450,5.58166,1791.6,1791.3,5.5825]
[1743681868850,5.58166,1791.6,1791.2,11.16543]
[1743681869071,11.16342,1791.6,1791.2,5.5827]
[1743681869273,5.58166,1791.6,1791.2,5.58269]
[1743681869746,5.58129,1791.7,1791.2,5.58257]
[1743681869935,5.58129,1791.7,1791.3,5.58244]
[1743681870472,11.16274,1791.7,1791.3,5.58244]
[1743681870850,5.58162,1791.6,1791.2,11.723579]
[1743681871186,5.5816,1791.6,1791.0,1.4391]
[1743681871352,5.58101,1791.8,1791.0,7.07834908]
[1743681871353,5.58226,1791.4,1791.0,7.07834908]
[1743681871548,5.58254,1791.3,1791.0,1.4391]
[1743681871766,5.58254,1791.3,1790.8,48.77209]
[1743681871767,5.58254,1791.3,1790.8,49.58079]
[1743681871953,5.58254,1791.3,1790.9,0.05583189]
[1743681872158,5.58233,1791.4,1791.0,5.58334]
[1743681872643,5.58233,1791.4,1791.0,11.2224991]
[1743681872844,5.58072,1791.9,1791.1,0.7662]
[1743681873044,11.16155,1791.9,1791.5,5.58186]
[1743681873750,5.58072,1791.9,1791.5,5.58179]
[1743681873972,5.58072,1791.9,1791.5,6.698186]
[1743681874549,5.58037,1792.0,1791.5,7.459486]
[1743681874769,5.58037,1792.0,1791.6,5.58138]
[1743681874965,5.58037,1792.0,1791.5,7.459536]
[1743681875178,5.58004,1792.1,1791.5,1.877696]
[1743681875388,5.58091,1791.9,1791.5,7.459586]
[1743681875798,11.16181,1791.9,1791.5,7.459586]
[1743681876286,5.5809,1791.9,1791.5,7.459586]
[1743681876461,11.16089,1792.0,1791.5,7.51529705]
[1743681877074,11.16089,1792.0,1791.6,5.58157]
[1743681877385,5.58068,1791.9,1791.5,13.041276]
[1743681879585,5.58068,1791.9,1791.5,7.459486]
[1743681879791,11.16156,1791.9,1791.5,7.459486]
[1743681880095,5.58041,1792.0,1791.5,1.93350713]
[1743681880378,11.16092,1792.0,1791.6,5.5815]
[1743681880550,5.57989,1792.2,1791.8,5.58084]
[1743681880752,5.57916,1792.4,1792.0,5.5803]
[1743681881253,11.15854,1792.4,1792.0,5.5803]
[1743681881873,5.57974,1792.2,1791.9,0.7765]
[1743681882080,5.57925,1792.4,1791.9,6.35691]
[1743681882255,5.57925,1792.4,1792.0,5.58025]
[1743681882454,5.6078,1792.6,1791.9,6.35691]
[1743681882455,5.57954,1792.3,1791.9,6.35691]
[1743681882658,5.57982,1792.2,1791.9,0.7765]
[1743681883053,5.57914,1792.4,1791.9,6.35713]
[1743681883261,5.57919,1792.4,1792.0,11.16056]
[1743681884267,5.57919,1792.4,1792.0,11.16045]
[1743681884471,5.57945,1792.3,1792.0,5.58021]
[1743681884672,5.57919,1792.4,1792.0,11.16041]
[1743681884882,5.57786,1792.8,1792.2,5.57962]
[1743681885073,5.57849,1792.6,1792.2,6.219192]
[1743681885273,5.57849,1792.6,1792.2,11.85460322]
[1743681885502,5.57849,1792.6,1792.2,0.639572]
[1743681885663,5.57849,1792.6,1792.2,6.219152]
[1743681885863,5.57849,1792.6,1792.3,5.57939]
[1743681886717,5.57823,1792.7,1792.4,5.57908]
[1743681886863,5.62785,1792.9,1792.6,5.57846]
[1743681887191,0.05,1792.9,1792.6,5.57837]
[1743681887492,0.05,1792.9,1792.5,0.7857]
[1743681887669,5.57808,1792.8,1792.5,0.7857]
[1743681888071,5.62756,1792.9,1792.3,0.8245]
[1743681888072,5.57875,1792.6,1792.3,0.8245]
[1743681888275,5.57892,1792.5,1792.3,0.8245]
[1743681888491,11.15709,1792.6,1792.3,0.8245]
[1743681889498,5.57848,1792.6,1792.3,6.4039]
[1743681889705,5.57797,1792.8,1792.4,5.63485095]
[1743681889873,5.57797,1792.8,1792.5,5.57862]
[1743681890268,5.57797,1792.8,1792.4,0.64593509]
[1743681890269,0.05,1792.9,1792.6,0.8036]
[1743681890573,0.05,1792.9,1792.7,11.21168634]
[1743681890782,0.05,1792.9,1792.8,5.57786]
[1743681891294,0.05,1792.9,1792.8,6.40236]
[1743681891465,0.05,1792.9,1792.8,11.158187]
[1743681893005,6.12541,1793.6,1793.3,5.57626]
[1743681893214,6.12541,1793.6,1793.3,6.39876]
[1743681893999,11.70097,1793.6,1793.3,0.8225]
[1743681894783,5.57579,1793.5,1793.3,0.8225]
[1743681894986,6.12541,1793.6,1793.3,0.8225]
[1743681895300,6.12541,1793.6,1793.3,6.39879]